[Event "The Schackveckan 2023: IM-turnering"]
[Site "Goteborgs schackcentrum, Vegagatan 20, Gothenburg, Sweden"]
[Date "2023.08.08"]
[Round "5.2"]
[White "Tryggestad, Andreas Garberg"]
[Black "Berggren Torell, Harald"]
[Result "1-0"]
[TimeControl "90 minutes for 40 moves + 30 minutes for the rest of the game + 30 seconds per move from move one."]
[WhiteTitle "FM"]
[WhiteFideId "1513338"]
[BlackFideId "1714031"]
[WhiteElo "2233"]
[BlackElo "2061"]

1. d4 {[%clk 01:29:05]} {[%emt 00:01:46]} d6 {[%clk 01:30:58]} {[%emt
00:00:12]} 2. Nf3 {[%clk 01:28:51]} {[%emt 00:00:43]} g6 {[%clk 01:31:27]}
{[%emt 00:00:01]} 3. c4 {[%clk 01:29:14]} {[%emt 00:00:07]} Bg7 {[%clk
01:31:56]} {[%emt 00:00:02]} 4. Nc3 {[%clk 01:29:32]} {[%emt 00:00:11]} e5
{[%clk 01:32:25]} {[%emt 00:00:02]} 5. dxe5 {[%clk 01:29:51]} {[%emt 00:00:10]}
dxe5 {[%clk 01:32:54]} {[%emt 00:00:02]} 6. Qxd8+ {[%clk 01:30:10]} {[%emt
00:00:11]} Kxd8 {[%clk 01:33:22]} {[%emt 00:00:01]} 7. g3 {[%clk 01:30:31]}
{[%emt 00:00:09]} c6 {[%clk 01:31:37]} {[%emt 00:02:16]} 8. Bg2 {[%clk
01:30:51]} {[%emt 00:00:08]} Kc7 {[%clk 01:30:47]} {[%emt 00:01:22]} 9. O-O
{[%clk 01:30:02]} {[%emt 00:01:18]} h6 {[%clk 01:25:53]} {[%emt 00:05:25]} 10.
b4 {[%clk 01:23:51]} {[%emt 00:06:40]} Ne7 {[%clk 01:14:17]} {[%emt 00:12:06]}
11. Bb2 {[%clk 01:16:47]} {[%emt 00:07:34]} Bf5 {[%clk 01:07:46]} {[%emt
00:07:01]} 12. Nxe5 {[%clk 01:16:11]} {[%emt 00:01:06]} 1-0

[Event "The Schackveckan 2023: IM-turnering"]
[Site "Goteborgs schackcentrum, Vegagatan 20, Gothenburg, Sweden"]
[Date "2023.08.08"]
[Round "5.3"]
[White "Karlsson, Stefan"]
[Black "Sorensen, Hampus"]
[Result "0-1"]
[TimeControl "90 minutes for 40 moves + 30 minutes for the rest of the game + 30 seconds per move from move one."]
[BlackTitle "IM"]
[WhiteFideId "1771183"]
[BlackFideId "8703884"]
[WhiteElo "1925"]
[BlackElo "2475"]

1. e4 {[%clk 01:30:55]} {[%emt 00:00:04]} c5 {[%clk 01:30:24]} {[%emt
00:00:37]} 2. Nf3 {[%clk 01:31:14]} {[%emt 00:00:10]} d6 {[%clk 01:30:38]}
{[%emt 00:00:17]} 3. c3 {[%clk 01:31:22]} {[%emt 00:00:22]} Nf6 {[%clk
01:30:25]} {[%emt 00:00:43]} 4. Be2 {[%clk 01:31:39]} {[%emt 00:00:13]} g6
{[%clk 01:28:33]} {[%emt 00:02:22]} 5. O-O {[%clk 01:32:01]} {[%emt 00:00:08]}
Bg7 {[%clk 01:28:35]} {[%emt 00:00:29]} 6. Bb5+ {[%clk 01:32:24]} {[%emt
00:00:06]} Nc6 {[%clk 01:27:38]} {[%emt 00:01:27]} 7. d4 {[%clk 01:32:46]}
{[%emt 00:00:09]} Qb6 {[%clk 01:25:30]} {[%emt 00:02:38]} 8. Ba4 {[%clk
01:28:58]} {[%emt 00:04:17]} cxd4 {[%clk 01:24:14]} {[%emt 00:01:47]} 9. cxd4
{[%clk 01:26:06]} {[%emt 00:03:21]} O-O {[%clk 01:24:12]} {[%emt 00:00:32]} 10.
d5 {[%clk 01:21:21]} {[%emt 00:05:15]} Na5 {[%clk 01:22:55]} {[%emt 00:01:48]}
11. Be3 {[%clk 01:08:49]} {[%emt 00:13:00]} Qxb2 {[%clk 00:58:34]} {[%emt
00:24:52]} 12. Bd4 {[%clk 01:07:47]} {[%emt 00:01:31]} Qb4 {[%clk 00:58:21]}
{[%emt 00:00:44]} 13. Nbd2 {[%clk 00:50:30]} {[%emt 00:17:47]} b5 {[%clk
00:46:36]} {[%emt 00:12:15]} 14. Bc2 {[%clk 00:41:46]} {[%emt 00:09:14]} Nc4
{[%clk 00:46:42]} {[%emt 00:00:24]} 15. Rb1 {[%clk 00:40:11]} {[%emt 00:02:06]}
Qa5 {[%clk 00:46:04]} {[%emt 00:01:08]} 16. Nxc4 {[%clk 00:39:11]} {[%emt
00:01:29]} bxc4 {[%clk 00:46:30]} {[%emt 00:00:05]} 17. Ba4 {[%clk 00:24:47]}
{[%emt 00:14:53]} Bg4 {[%clk 00:45:05]} {[%emt 00:01:55]} 18. h3 {[%clk
00:21:01]} {[%emt 00:04:16]} Bxf3 {[%clk 00:45:12]} {[%emt 00:00:24]} 19. gxf3
{[%clk 00:21:25]} {[%emt 00:00:05]} Rab8 {[%clk 00:32:19]} {[%emt 00:13:24]} 20.
Qc2 {[%clk 00:20:47]} {[%emt 00:01:06]} Qc7 {[%clk 00:30:56]} {[%emt 00:01:55]}
21. Bc6 {[%clk 00:15:47]} {[%emt 00:05:30]} Nh5 {[%clk 00:26:38]} {[%emt
00:04:47]} 22. Bxg7 {[%clk 00:15:06]} {[%emt 00:01:10]} Kxg7 {[%clk 00:27:01]}
{[%emt 00:00:08]} 23. Qxc4 {[%clk 00:14:15]} {[%emt 00:01:21]} Nf4 {[%clk
00:26:53]} {[%emt 00:00:37]} 24. Qd4+ {[%clk 00:09:47]} {[%emt 00:04:58]} f6
{[%clk 00:25:39]} {[%emt 00:01:45]} 25. Kh2 {[%clk 00:08:12]} {[%emt 00:02:05]}
Qc8 {[%clk 00:24:35]} {[%emt 00:01:34]} 26. Kg3 {[%clk 00:08:27]} {[%emt
00:00:15]} Ne2+ {[%clk 00:24:59]} {[%emt 00:00:07]} 0-1

[Event "The Schackveckan 2023: IM-turnering"]
[Site "Goteborgs schackcentrum, Vegagatan 20, Gothenburg, Sweden"]
[Date "2023.08.08"]
[Round "5.4"]
[White "Storme, Isak"]
[Black "Hector, Jonny"]
[Result "1/2-1/2"]
[TimeControl "90 minutes for 40 moves + 30 minutes for the rest of the game + 30 seconds per move from move one."]
[WhiteTitle "IM"]
[BlackTitle "GM"]
[WhiteFideId "1728113"]
[BlackFideId "1700090"]
[WhiteElo "2448"]
[BlackElo "2466"]

1. e4 {[%clk 01:30:55]} {[%emt 00:00:03]} e5 {[%clk 01:30:55]} {[%emt
00:00:05]} 2. Nf3 {[%clk 01:31:17]} {[%emt 00:00:09]} Nc6 {[%clk 01:31:17]}
{[%emt 00:00:09]} 3. Bb5 {[%clk 01:31:41]} {[%emt 00:00:06]} f5 {[%clk
01:31:35]} {[%emt 00:00:11]} 4. d3 {[%clk 01:32:03]} {[%emt 00:00:08]} fxe4
{[%clk 01:31:40]} {[%emt 00:00:24]} 5. dxe4 {[%clk 01:32:27]} {[%emt 00:00:07]}
Nf6 {[%clk 01:31:52]} {[%emt 00:00:17]} 6. O-O {[%clk 01:32:48]} {[%emt
00:00:10]} d6 {[%clk 01:31:56]} {[%emt 00:00:25]} 7. Nc3 {[%clk 01:26:01]}
{[%emt 00:07:19]} Be7 {[%clk 01:31:42]} {[%emt 00:00:42]} 8. a4 {[%clk
01:18:06]} {[%emt 00:08:27]} O-O {[%clk 01:27:50]} {[%emt 00:04:20]} 9. Bc4+
{[%clk 01:14:41]} {[%emt 00:03:56]} Kh8 {[%clk 01:28:07]} {[%emt 00:00:12]} 10.
Ng5 {[%clk 01:13:33]} {[%emt 00:01:40]} Qe8 {[%clk 01:26:25]} {[%emt 00:02:11]}
11. Ne6 {[%clk 00:56:25]} {[%emt 00:17:37]} Bxe6 {[%clk 01:25:53]} {[%emt
00:01:03]} 12. Bxe6 {[%clk 00:56:48]} {[%emt 00:00:08]} Nd4 {[%clk 01:12:17]}
{[%emt 00:14:05]} 13. Ba2 {[%clk 00:49:16]} {[%emt 00:08:03]} Qg6 {[%clk
01:09:11]} {[%emt 00:03:35]} 14. Qd3 {[%clk 00:42:45]} {[%emt 00:07:02]} d5
{[%clk 00:44:55]} {[%emt 00:24:45]} 15. exd5 {[%clk 00:42:06]} {[%emt
00:01:10]} Nxc2 {[%clk 00:40:33]} {[%emt 00:04:51]} 16. Qxg6 {[%clk 00:42:11]}
{[%emt 00:00:25]} hxg6 {[%clk 00:41:00]} {[%emt 00:00:03]} 17. Rb1 {[%clk
00:42:27]} {[%emt 00:00:14]} Bc5 {[%clk 00:40:03]} {[%emt 00:01:27]} 18. Bg5
{[%clk 00:40:20]} {[%emt 00:02:37]} a6 {[%clk 00:33:05]} {[%emt 00:07:29]} 19.
Rbc1 {[%clk 00:38:52]} {[%emt 00:01:57]} Nb4 {[%clk 00:32:45]} {[%emt
00:00:50]} 20. Bb1 {[%clk 00:38:48]} {[%emt 00:00:34]} Bd4 {[%clk 00:31:10]}
{[%emt 00:02:06]} 21. Bxf6 {[%clk 00:26:45]} {[%emt 00:12:33]} gxf6 {[%clk
00:30:49]} {[%emt 00:00:49]} 22. Bxg6 {[%clk 00:26:44]} {[%emt 00:00:32]} f5
{[%clk 00:28:09]} {[%emt 00:03:08]} 23. Ne2 {[%clk 00:19:19]} {[%emt 00:07:56]}
Bb6 {[%clk 00:24:21]} {[%emt 00:04:19]} 24. Ng3 {[%clk 00:16:48]} {[%emt
00:03:01]} f4 {[%clk 00:24:39]} {[%emt 00:00:12]} 25. Nf5 {[%clk 00:11:38]}
{[%emt 00:05:40]} Rf6 {[%clk 00:10:40]} {[%emt 00:14:29]} 26. Ne7 {[%clk
00:09:39]} {[%emt 00:02:29]} Rd8 {[%clk 00:07:35]} {[%emt 00:03:35]} 27. Be4
{[%clk 00:09:49]} {[%emt 00:00:19]} Kg7 {[%clk 00:07:08]} {[%emt 00:00:58]} 28.
Rc3 {[%clk 00:08:20]} {[%emt 00:01:59]} Kf7 {[%clk 00:06:33]} {[%emt 00:01:05]}
29. Nf5 {[%clk 00:07:33]} {[%emt 00:01:17]} Nxd5 {[%clk 00:06:09]} {[%emt
00:00:54]} 30. Rd3 {[%clk 00:05:51]} {[%emt 00:02:13]} c6 {[%clk 00:06:14]}
{[%emt 00:00:24]} 31. Rfd1 {[%clk 00:05:56]} {[%emt 00:00:25]} Ke6 {[%clk
00:04:48]} {[%emt 00:01:55]} 32. Nh4 {[%clk 00:05:24]} {[%emt 00:01:03]} Rff8
{[%clk 00:03:07]} {[%emt 00:02:11]} 33. Nf3 {[%clk 00:04:54]} {[%emt 00:01:00]}
Nf6 {[%clk 00:03:00]} {[%emt 00:00:37]} 34. Ng5+ {[%clk 00:04:57]} {[%emt
00:00:27]} Ke7 {[%clk 00:03:28]} {[%emt 00:00:02]} 35. Bf5 {[%clk 00:03:23]}
{[%emt 00:02:04]} Rxd3 {[%clk 00:02:26]} {[%emt 00:01:32]} 36. Rxd3 {[%clk
00:03:37]} {[%emt 00:00:16]} Rd8 {[%clk 00:01:58]} {[%emt 00:00:58]} 37. Rxd8
{[%clk 00:03:57]} {[%emt 00:00:11]} Bxd8 {[%clk 00:02:07]} {[%emt 00:00:21]} 38.
Bc8 {[%clk 00:04:07]} {[%emt 00:00:20]} b5 {[%clk 00:01:51]} {[%emt 00:00:45]}
39. Bxa6 {[%clk 00:03:21]} {[%emt 00:01:17]} bxa4 {[%clk 00:02:12]} {[%emt
00:00:09]} 40. Bd3 {[%clk 00:03:27]} {[%emt 00:00:23]} Nd7 {[%clk 00:01:02]}
{[%emt 00:01:40]} 41. Bc2 {[%clk 00:03:14]} {[%emt 00:00:43]} Nc5 {[%clk
00:00:50]} {[%emt 00:00:42]} 42. Ne4 {[%clk 00:02:47]} {[%emt 00:00:57]} Nxe4
{[%clk 00:00:39]} {[%emt 00:00:41]} 43. Bxe4 {[%clk 00:03:13]} {[%emt
00:00:04]} Bb6 {[%clk 00:01:00]} {[%emt 00:00:09]} 44. Bxc6 {[%clk 00:03:33]}
{[%emt 00:00:11]} Bd4 {[%clk 00:01:25]} {[%emt 00:00:04]} 45. Bxa4 {[%clk
00:03:59]} {[%emt 00:00:04]} Bxb2 {[%clk 00:01:49]} {[%emt 00:00:06]} 46. g3
{[%clk 00:04:17]} {[%emt 00:00:11]} Kf6 {[%clk 00:28:27]} {[%emt 00:03:52]} 47.
Bc2 {[%clk 00:34:35]} {[%emt 00:00:13]} Bc3 {[%clk 00:28:20]} {[%emt 00:00:37]}
48. Ba4 {[%clk 00:34:59]} {[%emt 00:00:06]} Bb4 {[%clk 00:28:13]} {[%emt
00:00:37]} 49. Bc2 {[%clk 00:35:24]} {[%emt 00:00:05]} Bc3 {[%clk 00:28:37]}
{[%emt 00:00:06]} 50. Ba4 {[%clk 00:35:50]} {[%emt 00:00:04]} Bb4 {[%clk
00:29:02]} {[%emt 00:00:05]} 51. Bc2 {[%clk 00:36:16]} {[%emt 00:00:04]}
1/2-1/2

[Event "The Schackveckan 2023: IM-turnering"]
[Site "Goteborgs schackcentrum, Vegagatan 20, Gothenburg, Sweden"]
[Date "2023.08.08"]
[Round "5.5"]
[White "Olsson, William"]
[Black "Brattgjerd, Isak Vinh"]
[Result "1-0"]
[TimeControl "90 minutes for 40 moves + 30 minutes for the rest of the game + 30 seconds per move from move one."]
[WhiteTitle "FM"]
[WhiteFideId "1741721"]
[BlackFideId "1549880"]
[WhiteElo "2400"]
[BlackElo "2214"]

1. c4 {[%clk 01:30:55]} {[%emt 00:00:05]} e5 {[%clk 01:30:56]} {[%emt
00:00:04]} 2. g3 {[%clk 01:31:20]} {[%emt 00:00:05]} Nf6 {[%clk 01:31:22]}
{[%emt 00:00:04]} 3. Bg2 {[%clk 01:31:45]} {[%emt 00:00:04]} d5 {[%clk
01:27:47]} {[%emt 00:04:05]} 4. cxd5 {[%clk 01:31:53]} {[%emt 00:00:22]} Nxd5
{[%clk 01:28:15]} {[%emt 00:00:03]} 5. Nf3 {[%clk 01:32:17]} {[%emt 00:00:06]}
Nc6 {[%clk 01:28:42]} {[%emt 00:00:03]} 6. O-O {[%clk 01:32:42]} {[%emt
00:00:05]} Be6 {[%clk 01:28:58]} {[%emt 00:00:14]} 7. d4 {[%clk 01:31:47]}
{[%emt 00:01:25]} exd4 {[%clk 01:29:14]} {[%emt 00:00:14]} 8. Nxd4 {[%clk
01:32:11]} {[%emt 00:00:05]} Nxd4 {[%clk 01:28:50]} {[%emt 00:00:55]} 9. Qxd4
{[%clk 01:32:32]} {[%emt 00:00:09]} c6 {[%clk 01:28:18]} {[%emt 00:01:03]} 10.
Nc3 {[%clk 01:22:32]} {[%emt 00:10:29]} Qf6 {[%clk 01:24:22]} {[%emt 00:04:25]}
11. Qa4 {[%clk 01:22:06]} {[%emt 00:00:56]} Nb6 {[%clk 01:23:59]} {[%emt
00:00:53]} 12. Qc2 {[%clk 01:21:32]} {[%emt 00:01:05]} Be7 {[%clk 01:20:16]}
{[%emt 00:04:12]} 13. e4 {[%clk 01:21:47]} {[%emt 00:00:16]} O-O {[%clk
01:19:34]} {[%emt 00:01:11]} 14. b3 {[%clk 01:21:50]} {[%emt 00:00:28]} Rfd8
{[%clk 01:09:04]} {[%emt 00:11:00]} 15. Be3 {[%clk 01:20:46]} {[%emt 00:01:34]}
Nd7 {[%clk 00:54:25]} {[%emt 00:15:08]} 16. Ne2 {[%clk 01:08:39]} {[%emt
00:12:39]} Ne5 {[%clk 00:50:27]} {[%emt 00:04:27]} 17. h3 {[%clk 00:59:28]}
{[%emt 00:09:41]} Nf3+ {[%clk 00:34:44]} {[%emt 00:16:13]} 18. Kh1 {[%clk
00:59:41]} {[%emt 00:00:16]} Bd6 {[%clk 00:34:00]} {[%emt 00:01:14]} 19. Rad1
{[%clk 00:56:48]} {[%emt 00:03:23]} Be5 {[%clk 00:33:30]} {[%emt 00:01:00]} 20.
Qc5 {[%clk 00:53:26]} {[%emt 00:03:52]} Bc7 {[%clk 00:27:34]} {[%emt 00:06:26]}
21. Rxd8+ {[%clk 00:52:32]} {[%emt 00:01:25]} Bxd8 {[%clk 00:26:06]} {[%emt
00:01:57]} 22. Qh5 {[%clk 00:52:49]} {[%emt 00:00:13]} Ng5 {[%clk 00:21:43]}
{[%emt 00:04:53]} 23. f4 {[%clk 00:52:36]} {[%emt 00:00:44]} g6 {[%clk
00:21:24]} {[%emt 00:00:49]} 24. Qh6 {[%clk 00:52:37]} {[%emt 00:00:28]} Nxe4
{[%clk 00:18:01]} {[%emt 00:03:55]} 25. Bxe4 {[%clk 00:50:07]} {[%emt
00:02:58]} Qe7 {[%clk 00:17:24]} {[%emt 00:01:07]} 26. f5 {[%clk 00:49:57]}
{[%emt 00:00:40]} gxf5 {[%clk 00:14:09]} {[%emt 00:03:45]} 27. Bg2 {[%clk
00:49:54]} {[%emt 00:00:30]} Bd5 {[%clk 00:13:50]} {[%emt 00:00:52]} 28. Nd4
{[%clk 00:49:13]} {[%emt 00:01:11]} Bxg2+ {[%clk 00:13:55]} {[%emt 00:00:26]}
29. Kxg2 {[%emt 00:00:18]} Qe4+ {[%clk 00:14:02]} {[%emt 00:00:22]} 30. Kh2
{[%clk 00:49:36]} {[%emt 00:00:19]} Bc7 {[%clk 00:13:31]} {[%emt 00:01:02]} 31.
Nxf5 {[%clk 00:50:01]} {[%emt 00:00:05]} Be5 {[%clk 00:13:50]} {[%emt
00:00:11]} 32. Ne7+ {[%clk 00:48:25]} {[%emt 00:02:05]} Kh8 {[%clk 00:14:19]}
{[%emt 00:00:02]} 33. Rxf7 {[%clk 00:48:38]} {[%emt 00:00:16]} 1-0

[Event "The Schackveckan 2023: IM-turnering"]
[Site "Goteborgs schackcentrum, Vegagatan 20, Gothenburg, Sweden"]
[Date "2023.08.08"]
[Round "6.1"]
[White "Sorensen, Hampus"]
[Black "Ustianovich, Nazar"]
[Result "1-0"]
[TimeControl "90 minutes for 40 moves + 30 minutes for the rest of the game + 30 seconds per move from move one."]
[WhiteTitle "IM"]
[BlackTitle "FM"]
[WhiteFideId "8703884"]
[BlackFideId "14109778"]
[WhiteElo "2475"]
[BlackElo "2314"]

1. d4 {[%clk 01:30:46]} {[%emt 00:00:15]} d5 {[%emt 00:01:32]} 2. c4 {[%clk
01:30:49]} c6 {[%clk 01:29:58]} {[%emt 00:00:26]} 3. Nf3 {[%clk 01:31:01]}
{[%emt 00:00:18]} Nf6 {[%clk 01:30:10]} {[%emt 00:00:13]} 4. Nbd2 {[%clk
01:30:02]} {[%emt 00:01:33]} e6 {[%clk 01:29:15]} {[%emt 00:01:26]} 5. g3
{[%clk 01:30:00]} {[%emt 00:00:32]} Be7 {[%clk 01:23:09]} {[%emt 00:06:36]} 6.
Bg2 {[%clk 01:29:39]} {[%emt 00:00:51]} O-O {[%clk 01:22:58]} {[%emt 00:00:41]}
7. O-O {[%clk 01:29:35]} {[%emt 00:00:34]} b6 {[%clk 01:23:12]} {[%emt
00:00:16]} 8. b3 {[%clk 01:15:09]} {[%emt 00:14:56]} Bb7 {[%clk 01:22:27]}
{[%emt 00:01:15]} 9. Bb2 {[%clk 01:15:17]} {[%emt 00:00:22]} Nbd7 {[%clk
01:22:04]} {[%emt 00:00:54]} 10. Qc2 {[%clk 01:10:26]} {[%emt 00:05:20]} c5
{[%clk 01:21:17]} {[%emt 00:01:18]} 11. Rad1 {[%clk 01:09:14]} {[%emt
00:01:41]} Rc8 {[%clk 01:20:56]} {[%emt 00:00:51]} 12. Qb1 {[%clk 01:09:17]}
{[%emt 00:00:27]} dxc4 {[%clk 00:59:11]} {[%emt 00:22:15]} 13. Nxc4 {[%clk
01:08:33]} {[%emt 00:01:14]} Be4 {[%clk 00:52:57]} {[%emt 00:06:43]} 14. Qa1
{[%clk 01:08:06]} {[%emt 00:00:57]} Qc7 {[%clk 00:52:10]} {[%emt 00:01:18]} 15.
dxc5 {[%clk 00:53:30]} {[%emt 00:15:06]} Bxc5 {[%clk 00:51:00]} {[%emt
00:01:40]} 16. Nfe5 {[%clk 00:42:26]} {[%emt 00:11:34]} Bxg2 {[%clk 00:49:12]}
{[%emt 00:02:18]} 17. Kxg2 {[%clk 00:37:45]} {[%emt 00:05:11]} Nxe5 {[%clk
00:48:20]} {[%emt 00:01:22]} 18. Bxe5 {[%clk 00:38:06]} {[%emt 00:00:08]} Qc6+
{[%clk 00:46:39]} {[%emt 00:02:10]} 19. Kg1 {[%clk 00:37:40]} {[%emt 00:00:58]}
Be7 {[%clk 00:46:32]} {[%emt 00:00:37]} 20. Nd6 {[%clk 00:32:44]} {[%emt
00:05:26]} Rcd8 {[%clk 00:45:14]} {[%emt 00:01:47]} 21. Rc1 {[%clk 00:33:00]}
{[%emt 00:00:15]} Qa8 {[%clk 00:44:31]} {[%emt 00:01:12]} 22. Nb5 {[%clk
00:27:41]} {[%emt 00:05:50]} Rc8 {[%clk 00:34:37]} {[%emt 00:10:24]} 23. Qd4
{[%clk 00:22:15]} {[%emt 00:05:56]} Rfd8 {[%clk 00:13:22]} {[%emt 00:21:46]} 24.
Qa4 {[%clk 00:20:33]} {[%emt 00:02:11]} a6 {[%clk 00:10:16]} {[%emt 00:03:37]}
25. Rxc8 {[%clk 00:13:10]} {[%emt 00:07:52]} Rxc8 {[%clk 00:09:42]} {[%emt
00:01:05]} 26. Nd6 {[%clk 00:12:38]} {[%emt 00:01:00]} Rc2 {[%clk 00:07:01]}
{[%emt 00:03:11]} 27. Bxf6 {[%clk 00:08:37]} {[%emt 00:04:32]} Bxf6 {[%clk
00:03:04]} {[%emt 00:04:27]} 28. Qd7 {[%clk 00:07:32]} {[%emt 00:01:35]} Qf8
{[%clk 00:03:30]} {[%emt 00:00:04]} 29. Rd1 {[%clk 00:07:54]} {[%emt 00:00:07]}
Rxa2 {[%emt 00:03:19]} 30. Ne4 {[%clk 00:06:42]} {[%emt 00:01:41]} h6 {[%clk
00:00:43]} {[%emt 00:00:30]} 31. Rc1 {[%clk 00:06:28]} {[%emt 00:00:43]} Qe7
{[%clk 00:00:39]} {[%emt 00:00:34]} 32. Rc8+ {[%clk 00:06:20]} {[%emt
00:00:38]} Kh7 {[%clk 00:01:07]} {[%emt 00:00:02]} 33. Qd3 {[%clk 00:06:31]}
{[%emt 00:00:20]} g6 {[%clk 00:00:42]} {[%emt 00:00:55]} 34. Re8 {[%clk
00:05:56]} {[%emt 00:01:04]} Ra1+ {[%clk 00:00:36]} {[%emt 00:00:37]} 35. Kg2
{[%clk 00:06:26]} {[%emt 00:00:01]} Qb4 {[%clk 00:00:33]} {[%emt 00:00:32]} 36.
Nxf6+ {[%clk 00:05:57]} {[%emt 00:00:59]} Kg7 {[%clk 00:01:02]} {[%emt
00:00:01]} 37. Qd8 {[%clk 00:04:56]} {[%emt 00:01:30]} 1-0

[Event "The Schackveckan 2023: IM-turnering"]
[Site "Goteborgs schackcentrum, Vegagatan 20, Gothenburg, Sweden"]
[Date "2023.08.08"]
[Round "6.2"]
[White "Storme, Isak"]
[Black "Tryggestad, Andreas Garberg"]
[Result "1-0"]
[TimeControl "90 minutes for 40 moves + 30 minutes for the rest of the game + 30 seconds per move from move one."]
[WhiteTitle "IM"]
[BlackTitle "FM"]
[WhiteFideId "1728113"]
[BlackFideId "1513338"]
[WhiteElo "2448"]
[BlackElo "2233"]

1. e4 {[%clk 01:30:14]} {[%emt 00:00:46]} e5 {[%clk 01:30:55]} {[%emt
00:00:06]} 2. Nf3 {[%clk 01:30:37]} {[%emt 00:00:06]} Nc6 {[%clk 01:31:20]}
{[%emt 00:00:05]} 3. Bb5 {[%clk 01:30:29]} {[%emt 00:00:38]} a6 {[%clk
01:31:45]} {[%emt 00:00:07]} 4. Ba4 {[%clk 01:30:55]} {[%emt 00:00:03]} Nf6
{[%clk 01:32:10]} {[%emt 00:00:04]} 5. O-O {[%clk 01:30:57]} {[%emt 00:00:27]}
Be7 {[%clk 01:31:43]} {[%emt 00:00:58]} 6. d3 {[%clk 01:31:15]} {[%emt
00:00:12]} b5 {[%clk 01:31:57]} {[%emt 00:00:16]} 7. Bb3 {[%clk 01:31:38]}
{[%emt 00:00:06]} d6 {[%clk 01:32:15]} {[%emt 00:00:13]} 8. a3 {[%clk
01:30:46]} {[%emt 00:01:22]} Na5 {[%clk 01:30:56]} {[%emt 00:01:49]} 9. Ba2
{[%clk 01:30:31]} {[%emt 00:00:44]} c5 {[%clk 01:29:50]} {[%emt 00:01:37]} 10.
Bg5 {[%clk 01:27:12]} {[%emt 00:03:48]} O-O {[%clk 01:28:53]} {[%emt 00:01:26]}
11. Nc3 {[%clk 01:25:31]} {[%emt 00:02:12]} Be6 {[%clk 01:26:55]} {[%emt
00:02:28]} 12. h3 {[%clk 01:22:20]} {[%emt 00:03:40]} Nc6 {[%clk 01:20:32]}
{[%emt 00:06:54]} 13. a4 {[%clk 01:15:55]} {[%emt 00:06:56]} b4 {[%clk
01:08:39]} {[%emt 00:12:23]} 14. Bxf6 {[%clk 01:13:48]} {[%emt 00:02:36]} Bxf6
{[%clk 01:09:03]} {[%emt 00:00:06]} 15. Nd5 {[%clk 01:14:12]} {[%emt 00:00:06]}
g6 {[%clk 01:07:58]} {[%emt 00:01:36]} 16. c3 {[%clk 01:14:03]} {[%emt
00:00:38]} Rb8 {[%clk 01:05:58]} {[%emt 00:02:30]} 17. Nd2 {[%clk 01:06:36]}
{[%emt 00:07:56]} Bg7 {[%clk 01:05:56]} {[%emt 00:00:34]} 18. Bc4 {[%clk
01:05:11]} {[%emt 00:01:54]} Qc8 {[%clk 00:53:27]} {[%emt 00:12:59]} 19. a5
{[%clk 01:03:08]} {[%emt 00:02:33]} Re8 {[%clk 00:38:56]} {[%emt 00:15:01]} 20.
Nb6 {[%clk 00:56:10]} {[%emt 00:07:27]} Qb7 {[%clk 00:39:07]} {[%emt 00:00:20]}
21. Bd5 {[%clk 00:51:14]} {[%emt 00:05:26]} Qc7 {[%clk 00:32:07]} {[%emt
00:07:30]} 22. Qa4 {[%clk 00:50:03]} {[%emt 00:01:41]} Bxd5 {[%clk 00:24:31]}
{[%emt 00:08:07]} 23. Nxd5 {[%clk 00:50:11]} {[%emt 00:00:21]} Qb7 {[%clk
00:24:59]} {[%emt 00:00:02]} 24. Nc4 {[%clk 00:50:13]} {[%emt 00:00:29]} Red8
{[%clk 00:25:28]} {[%emt 00:00:01]} 25. Qxc6 {[%clk 00:48:33]} {[%emt
00:01:37]} 1-0